Cogmind - Beta 10.2 @@@ ROGUE MODE // 2021.02.27 @ 22:35:55 Player: aperiodic Result: Destroyed by as-70288 with Assembled Rifle Performance ------------- Evolutions (0) 0 Regions Visited (2) 400 Robots Destroyed (33) 165 Value Destroyed (658) 658 Prototype IDs (2) 40 Alien Tech Used (0) 0 Bonus (25) 25 TOTAL SCORE: 1288 Bonus ------- High Alert Combat Kills 25 Cogmind --------- Core Integrity 0/250 Matter 43/300 Energy 230/250 System Corruption 2% Temperature Cool (10) Movement Treading (160) Location -10/Mines Parts ------- > --- POWER (1) -------- Ion Engine > --- PROPULSION (2) --- Light Treads Improved Treads > --- UTILITY (2) ------ Large Storage Unit Light Armor Plating > --- WEAPON (2) ------- Assault Rifle Assault Rifle > --- INVENTORY (10) --- Light Ion Engine Improved Treads Improved Treads Medium Storage Unit Large Storage Unit High-capacity Matter Pod (0) Light Armor Plating Hacking Suite Peak State ------------ > --- POWER ------------ Ion Engine > --- PROPULSION ------- Light Treads Improved Treads > --- UTILITY ---------- Medium Storage Unit Medium Storage Unit > --- WEAPON ----------- EM Pulse Gun Assault Rifle > --- INVENTORY -------- Light Ion Engine Improved Treads Wheel Wheel High-capacity Matter Pod Light Armor Plating Light Armor Plating Hacking Suite Assault Rifle Assault Rifle Grenade Launcher Mining Laser [Rating: 9] Favorites ----------- Power Light Ion Engine Engine Light Ion Engine Propulsion Wheel Treads Light Treads Wheel Wheel Utility Medium Storage Unit Storage Medium Storage Unit Protection Light Armor Plating Weapon Assault Rifle Energy Gun EM Pulse Gun Ballistic Gun Assault Rifle Launcher Grenade Launcher Special Weapon Mining Laser Build | -11 -10 -10 ------- Run | Scr Mat Min Slots Evolved . | . . . Power . | . . . Propulsion . | . . . Utility . | . . . Weapon . | . . . Parts Attached 36 | 7 25 4 Power 2 | 1 1 . Engine 2 | 1 1 . Core . | . . . Reactor . | . . . Propulsion 7 | 3 4 . Treads 3 | . 3 . Leg . | . . . Wheel 4 | 3 1 . Hover . | . . . Flight . | . . . Utility 8 | 1 6 1 Device . | . . . Storage 7 | 1 6 . Processor . | . . . Hackware . | . . . Protection 1 | . . 1 Artifact . | . . . Weapon 19 | 2 14 3 Energy Gun 4 | 1 3 . Energy Cannon . | . . . Ballistic Gun 8 | 1 5 2 Ballistic Cannon . | . . . Launcher 6 | . 5 1 Special Weapon 1 | . 1 . Impact Weapon . | . . . Slashing Weapon . | . . . Piercing Weapon . | . . . Special Melee Weapon . | . . . Unidentified Prototypes . | . . . Parts Lost 3 | . 1 2 Power 1 | . 1 . Propulsion . | . . . Utility . | . . . Weapon 2 | . . 2 Highest Loss Streak 2 | . 1 2 Average Slot Usage (%) 97 | . 97 100 Engine 12 | . 12 14 Treads 8 | . 7 28 Wheel 19 | . 20 . Storage 27 | . 27 21 Energy Gun 8 | . 8 7 Ballistic Gun 17 | . 17 14 Launcher 2 | . 2 7 Naked Turns . | . . . Heaviest Build 41 | 10 41 . Greatest Support 43 | 26 43 . Greatest Overweight (x) 1 | . 1 . Average Overweight (x) . | . . . Largest Inventory Capacity 16 | 6 16 16 Average Capacity 10 | 5 11 13 Most Carried 13 | 6 13 13 Average Carried 9 | 3 10 11 Final Capacity 16 | 6 16 10 Final Carried 13 | 5 13 8 Class Distribution -------------------- 100% | Mutant Dominant Class ---------------- Mutant | -10/Materials Mutant | -10/Mines Resources | -11 -10 -10 ----------- Run | Scr Mat Min Matter Collected 820 | 284 536 . Remotely . | . . . Salvage Created 847 | 134 666 47 Parts 58 | 12 44 2 Haulers Intercepted 2 | . 2 . Recyclers Shooed . | . . . Parts Field Recycled . | . . . Retrieved Matter . | . . . Parts Self-Destructed . | . . . Prevented . | . . . Kills | -11 -10 -10 ------- Run | Scr Mat Min Combat Hostiles Destroyed 35 | . 19 16 Guns 9 | . 9 . AOE 26 | . 10 16 Classes Destroyed 9 | 2 6 1 Builder 1 | . 1 . Tunneler 4 | 4 . . Hauler 2 | . 2 . Recycler 1 | 1 . . Operator 2 | . 2 . Watcher 3 | . 3 . Swarmer 7 | . 6 1 Grunt 13 | . 13 . Assembled 15 | . . 15 Best Kill Streak 16 | 4 5 16 Combat Bots Only 16 | . 3 16 Max Kills in Single Turn 8 | 1 2 8 Gunslinging . | . . . Exploded 8 | . 2 8 Melee . | . . . Uniques/NPCs Destroyed . | . . . Combat | -11 -10 -10 -------- Run | Scr Mat Min Damage Taken 935 | . 494 441 Core 251 | . 84 167 Absorbed by Shields . | . . . Core Remaining (%) 100 | 100 . . Volleys Fired 93 | 14 75 4 Largest 2 | 2 2 2 Hottest 100 | 60 100 60 Shots Fired 166 | 28 133 5 Gun 146 | 28 116 2 Cannon . | . . . Launcher 19 | . 16 3 Special 1 | . 1 . Kinetic 90 | 14 75 1 Thermal 1 | . 1 . Explosive 19 | . 16 3 Electromagnetic 56 | 14 41 1 Robot Hit Streak 9 | 6 9 4 Robot Miss Streak 4 | 3 4 1 Penetration Max . | . . . Secondary Targets . | . . . Shots Hit Robots 92 | 14 74 4 Core Hits 79 | 6 47 26 Critical Hits 1 | 1 . . Critical Kills 1 | 1 . . Critical Parts Destroyed . | . . . Melee Attacks . | . . . Impact . | . . . Slashing . | . . . Piercing . | . . . Sneak Attacks . | . . . Combat Hostiles . | . . . Follow-up Attacks . | . . . Damage Inflicted 3062 | 185 1848 1029 Guns 1079 | 151 902 26 Cannons . | . . . Explosions 1983 | 34 946 1003 Melee . | . . . Ramming . | . . . Kinetic 527 | 42 471 14 Thermal 96 | 34 62 . Explosive 1887 | . 884 1003 Electromagnetic 552 | 109 431 12 Impact . | . . . Slashing . | . . . Piercing . | . . . Highest Corruption 2 | . 2 2 Average Corruption 2 | . 2 2 Corruption Purged . | . . . Effects 11 | . 11 . Message Errors 3 | . 3 . Heat Flow Errors 2 | . 2 . Energy Discharges 3 | . 3 . Data Loss (minor) 2 | . 2 . Targeting Errors 1 | . 1 . Overload Shots . | . . . Overflow Damage 32 | . 20 12 Projectiles . | . . . Explosions 32 | . 20 12 Melee . | . . . Knockbacks . | . . . Impact . | . . . Kinetic . | . . . Secondary . | . . . Self-Inflicted Damage 73 | . 31 42 Shots 4 | . 1 3 Rammed . | . . . Targets Rammed . | . . . Kicked . | . . . Crushed . | . . . Highest Temperature 275 | 40 275 48 Average Temperature 42 | 20 50 31 Received Heat Transfer 297 | . 177 120 Siege Activations . | . . . Robots Corrupted . | . . . Combat Hostiles . | . . . Parts Fried 3 | . 3 . Impact Corruptions . | . . . Robots Melted . | . . . Combat Hostiles . | . . . Parts Melted . | . . . Heat Transferred 150 | 50 100 . Parts Sabotaged . | . . . Parts Stolen . | . . . Parts Stripped . | . . . Power Chain Reactions 2 | 1 1 . Missiles Intercepted . | . . . Alert | -11 -10 -10 ------- Run | Scr Mat Min Peak Influence 491 | 25 491 157 Initial 132 | . 16 132 Average 217 | 10 253 150 Maximum Alert Level 2 | . 2 . Low Security (%) 51 | 100 42 100 Level 1 34 | . 41 . Level 2 14 | . 16 . Level 3 . | . . . Level 4 . | . . . Level 5 . | . . . High Security . | . . . Max Security . | . . . Squads Dispatched 8 | . 8 . Investigation 4 | . 4 . Extermination . | . . . Reinforcement 4 | . 4 . Assault . | . . . Garrison . | . . . Intercept . | . . . Construction Impeded . | . . . Haulers Reinforced . | . . . Stealth | -11 -10 -10 --------- Run | Scr Mat Min Distress Signals 2 | . 2 . Communications Jammed . | . . . Distress Signals . | . . . Times Spotted 56 | . 33 23 Peak Tracking Total 23 | . 5 23 Tactical Retreats 3 | . 3 . Traps | -11 -10 -10 ------- Run | Scr Mat Min Traps Triggered 4 | . 4 . Indirectly . | . . . Trap Hack Attempts . | . . . Triggered . | . . . Disarmed . | . . . Reprogrammed . | . . . Reused . | . . . Traps Extracted . | . . . Installed . | . . . Triggered . | . . . Machines | -11 -10 -10 ---------- Run | Scr Mat Min Machines Disabled 2 | . 2 . Max in Single Turn 1 | . 1 . Machines Sabotaged . | . . . Garrisons Compromised . | . . . Overloaded Fab Kills . | . . . Fab Network Shutdowns . | . . . Hacking | -11 -10 -10 --------- Run | Scr Mat Min Machines Accessed 5 | . 5 . Terminals 4 | . 4 . Fabricators . | . . . Repair Stations . | . . . Recycling Units 1 | . 1 . Scanalyzers . | . . . Garrison Access . | . . . Total Hacks 14 | . 14 . Successful 3 | . 3 . Failed 10 | . 10 . Catastrophic 1 | . 1 . Database Lockouts 1 | . 1 . Manual 10 | . 10 . Terminals 12 | . 12 . Fabricators . | . . . Repair Stations . | . . . Recycling Units 2 | . 2 . Scanalyzers . | . . . Garrison Access . | . . . Terminal Hacks 2 | . 2 . Prototype ID Bank 1 | . 1 . Locate Traps 1 | . 1 . Fabricator Hacks . | . . . Repair Station Hacks . | . . . Recycling Unit Hacks . | . . . Scanalyzer . | . . . Garrison Access Hacks . | . . . Unauthorized Hacks 1 | . 1 . Terminals . | . . . Fabricators . | . . . Repair Stations . | . . . Recycling Units 1 | . 1 . Tunnel 1 | . 1 . Scanalyzers . | . . . Garrison Access . | . . . Data Cores Recovered . | . . . Used . | . . . Hacking Detections 4 | . 4 . Full Trace Events . | . . . Feedback Events . | . . . Feedback Blocked . | . . . Robot Schematics Acquired . | . . . Robots Built . | . . . Matter . | . . . Time . | . . . Total Robot Build Rating . | . . . Part Schematics Acquired . | . . . Parts Built . | . . . Matter . | . . . Time . | . . . Total Part Build Rating . | . . . Parts Repaired . | . . . Time . | . . . Parts Recycled . | . . . Recycled Matter . | . . . Retrieved Matter . | . . . Retrieved Components . | . . . Parts Scanalyzed . | . . . Part Schematics Acquired . | . . . Parts Damaged . | . . . Bothacking | -11 -10 -10 ------------ Run | Scr Mat Min Used RIF Installer . | . . . Robots Hacked . | . . . Non-combat . | . . . Combat . | . . . Robot Hacks Applied . | . . . Relay Couplers Released . | . . . Robots Rewired . | . . . Allies Hacked . | . . . Hacks Repelled . | . . . Allies | -11 -10 -10 -------- Run | Scr Mat Min Total Allies . | . . . Largest Group . | . . . Highest-Rated Group . | . . . Highest-Rated Ally . | . . . Total Orders . | . . . Ally Attacks . | . . . Total Damage . | . . . Kills . | . . . Allies Corrupted . | . . . Allies Melted . | . . . Intel | -11 -10 -10 ------- Run | Scr Mat Min Robot Analysis Total . | . . . Derelict Logs Recovered . | . . . Drone Launches . | . . . Drone Recoveries . | . . . Exploration | -11 -10 -10 ------------- Run | Scr Mat Min Turns Passed 1009 | 143 852 14 Spaces Moved 680 | 111 569 . Core 33 | 33 . . Treads 104 | . 104 . Legs . | . . . Wheels 543 | 78 465 . Hover . | . . . Flight . | . . . Fastest Speed 50 | 50 80 . Average Speed 95 | 75 99 . Slowest Speed 160 | 100 160 . Overloaded Moves . | . . . Propulsion Burnouts . | . . . Robots Hopped . | . . . Cave-ins Triggered . | . . . Exploration Rate (%) 30 | 4 84 4 Regions Visited 2 Branch Regions 1 Pre-discovered Areas 1 | . 1 . Known Exits Taken . | . . . Unknown Exits Taken 2 | 1 1 . Scrap Searched . | . . . Spaces Dug 1 | . 1 . Terrain Destroyed 130 | 6 99 25 Melee . | . . . Projectile 1 | . 1 . AOE 129 | 6 98 25 Terrain Rammed . | . . . Walls Destroyed . | . . . Machines Disabled . | . . . Actions | -11 -10 -10 --------- Run | Scr Mat Min Total 872 | 144 720 8 Wait 25 | . 25 . Move 678 | 110 568 . Hop . | . . . Pick Up 26 | 11 15 . Fast Attach 3 | 2 1 . Attach 7 | 4 1 2 Detach . | . . . Swap 26 | 1 23 2 Drop 14 | 2 12 . Fire 93 | 14 75 4 Melee . | . . . Ram . | . . . Kick . | . . . Crush . | . . . Escape Stasis . | . . . Rewire . | . . . Trap . | . . . Miscellaneous . | . . . Route ------- -11/Scrapyard -10/Materials (discovered 4 exits: [*Mat x3] / [*Min]) -10/Mines History --------- Turn | Location | Event 4 | -11/Scrapyard | Discovered new exit (range 15) 144 | -11/Scrapyard | Entered Materials 313 | -10/Materials | Build established: Mutant 414 | -10/Materials | Discovered new exit (range 16) 497 | -10/Materials | Discovered new exit (range 14) 557 | -10/Materials | Discovered new exit (range 5) 738 | -10/Materials | Discovered new exit (range 16) 949 | -10/Materials | Central database locked down 996 | -10/Materials | Entered Mines 997 | -10/Mines | Assembled infested the area 1002 | -10/Mines | Core integrity fell below 50% 1004 | -10/Mines | Core integrity fell below 20% 1010 | -10/Mines | Destroyed by as-70288 with Assembled Rifle Last Messages --------------- 01001_ as-91230 destroyed. 01002_ as-69674 destroyed. 01003_ as-06133 destroyed. 01003_ as-06261 destroyed. 01003_ as-07632 destroyed. 01003_ as-36188 destroyed. 01003_ as-65749 destroyed. 01003_ as-41111 destroyed. 01005_ The unstable cave ceiling collapses. 01006_ Destroyed Asb. F-torch. 01006_ as-73436 destroyed. 01006_ as-35967 destroyed. 01006_ as-70628 destroyed. 01006_ as-72521 destroyed. 01006_ as-50965 destroyed. 01006_ as-91311 destroyed. 01006_ as-38151 destroyed. 01006_ as-85128 destroyed. 01006_ Destroyed Asb. Hover Unit. 01008_ Grenade Launcher destroyed. Map ----- +----------------------------------------------------+ | | | | | | | | | | | | | | | ???????????????????????????????? | | ???????????????????????????????? | | ???????????????????????????????? | | ???????????????????????????????? | | ???????????????????????????????? | | ???????????????????????????????? | | ???????????????????????????????? | | ???????????????????????????????? | | ???????????????????????????????? | | ???????????????????????????????? | | ???????????????????????????????? | | ???????????????????????????????? | | ???????????????????????????????? | | ????????#####??????????????????? | | ???##### # #??????????????????? | | ???# = ###????????????????? | | ???# * #????????????????? | | ???# % % ##???????????????? | | ???# |@a * [ ????????? | | ???# =aa %% < ????????? | | ???# %a ## ????????? | | ???#### #????????????????? | | ??????# ### ???????????????? | | ??????######??? ?????????????? | | ????????????????? ???????????? | | ???????????????????# ??????????? | | ???????????????????????????????? | | ???????????????????????????????? | | ???????????????????????????????? | | ???????????????????????????????? | | ???????????????????????????????? | | ???????????????????????????????? | | ???????????????????????????????? | | ???????????????????????????????? | | ???????????????????????????????? | | ???????????????????????????????? | | ???????????????????????????????? | | ???????????????????????????????? | | ???????????????????????????????? | | ???????????????????????????????? | | ???????????????????????????????? | | ???????????????????????????????? | | ???????????????????????????????? | +----------------------------------------------------+ Best States ------------- Heat Dissipation 25 Energy Generation 10 Energy Capacity 250 Matter Stores 300 Matter Capacity 300 Sight Range 16 Terrain Scan Density 10 Armor Coverage 150 Evasion (%) 50 Recoil Reduction 2 Item Schematics ----------------- None Robot Schematics ------------------ None Fabricated ------------ Nothing Alien Tech Used ----------------- None Achievements -------------- None Challenges ------------ None Game ------ Seed ReclamationDeepTendrils Manual? 0 Play Time 00:15:12 Cumulative 350.6 hours Start 2021.02.27 @ 22:18:35 End 2021.02.27 @ 22:35:55 Sessions 1 Manual Loads 0 Difficulty Rogue Special Mode None Game No. 124 Rogue 120 Adventurer 4 Explorer 0 Win Type - Total 8 Types 4/1/3/0/0/0/0/0/0 Lore% 77 Gallery% 80 Achievement% 66 Wizard Run 0 Options --------- ASCII 1 Keyboard 0 Movement Arrows Keybinds 0 Fullscreen 1 Font 18/Smallcaps Map View 76x50 Tactical HUD 1 Map Filters NONE Filters NONE Steam 1 RUN: 20b2282c-62c8-44e7-8f93-6e8cb6e90987